[Event "Early-Titled-Tuesday-Blitz-March-05-2024"]
[Site "Chess.com"]
[Date "2024.03.05"]
[Round "7"]
[White "pfalcon1949"]
[Black "LaPiToB"]
[Result "0-1"]
[WhiteElo "1929"]
[BlackElo "2274"]
[TimeControl "180+1"]
[EndTime "9:19:55 PST"]
[Termination "LaPiToB won on time"]

1. e4 {[%clk 0:03:00.9]} 1... c6 {[%clk 0:02:59.9]} 2. d4 {[%clk 0:02:59.2]}
2... d5 {[%clk 0:03:00.8]} 3. e5 {[%clk 0:02:58]} 3... Bf5 {[%clk 0:03:00.5]} 4.
h4 {[%clk 0:02:56]} 4... h5 {[%clk 0:03:00.7]} 5. Bg5 {[%clk 0:02:54]} 5... Qa5+
{[%clk 0:02:59.7]} 6. c3 {[%clk 0:02:46.8]} 6... e6 {[%clk 0:02:58.7]} 7. Bd3
{[%clk 0:02:46.2]} 7... Bxd3 {[%clk 0:02:57.8]} 8. Qxd3 {[%clk 0:02:46.1]} 8...
c5 {[%clk 0:02:45.2]} 9. Nf3 {[%clk 0:02:44.1]} 9... Nc6 {[%clk 0:02:43.4]} 10.
O-O {[%clk 0:02:41.8]} 10... cxd4 {[%clk 0:02:41.9]} 11. cxd4 {[%clk 0:02:35.5]}
11... Nge7 {[%clk 0:02:40.5]} 12. Bxe7 {[%clk 0:02:26.6]} 12... Bxe7 {[%clk
0:02:34.9]} 13. Nc3 {[%clk 0:02:27.5]} 13... a6 {[%clk 0:02:29]} 14. a3 {[%clk
0:02:04.3]} 14... Qb6 {[%clk 0:02:21.4]} 15. b4 {[%clk 0:02:03.8]} 15... Rc8
{[%clk 0:02:20]} 16. Na4 {[%clk 0:02:02.8]} 16... Qd8 {[%clk 0:02:16.8]} 17. Nc5
{[%clk 0:02:01.4]} 17... Rc7 {[%clk 0:02:14.2]} 18. g3 {[%clk 0:01:54.9]} 18...
Bxc5 {[%clk 0:02:07.6]} 19. bxc5 {[%clk 0:01:48.7]} 19... Na5 {[%clk 0:02:01.5]}
20. Rab1 {[%clk 0:01:44.9]} 20... Qd7 {[%clk 0:01:58.4]} 21. Rfc1 {[%clk
0:01:41.8]} 21... Nc4 {[%clk 0:01:52.6]} 22. Kg2 {[%clk 0:01:25.9]} 22... Qa4
{[%clk 0:01:45.3]} 23. Rb3 {[%clk 0:01:24.9]} 23... g6 {[%clk 0:01:36.9]} 24.
Rcb1 {[%clk 0:01:22.2]} 24... Qc6 {[%clk 0:01:34.2]} 25. Ng5 {[%clk 0:01:15.8]}
25... O-O {[%clk 0:01:32]} 26. Rd1 {[%clk 0:00:53.3]} 26... Kg7 {[%clk
0:01:25.1]} 27. g4 {[%clk 0:00:51.1]} 27... hxg4 {[%clk 0:01:14.1]} 28. h5
{[%clk 0:00:45.5]} 28... Rh8 {[%clk 0:01:12.7]} 29. Rh1 {[%clk 0:00:37.1]} 29...
gxh5 {[%clk 0:00:51.5]} 30. Rh4 {[%clk 0:00:19.4]} 30... Qe8 {[%clk 0:00:45.4]}
31. Qg3 {[%clk 0:00:18.8]} 31... Qe7 {[%clk 0:00:44.6]} 32. Rf3 {[%clk
0:00:17.1]} 32... Qxg5 {[%clk 0:00:43.3]} 33. Rf6 {[%clk 0:00:14.4]} 33... Rh7
{[%clk 0:00:35.1]} 34. Rh1 {[%clk 0:00:11.5]} 34... Kf8 {[%clk 0:00:34.8]} 35.
Rd1 {[%clk 0:00:09]} 35... Ke7 {[%clk 0:00:34.5]} 36. Rd3 {[%clk 0:00:09.1]}
36... h4 {[%clk 0:00:34.7]} 37. Qf4 {[%clk 0:00:08.1]} 37... Qxf4 {[%clk
0:00:34.3]} 38. Rxf4 {[%clk 0:00:08.7]} 38... Rg7 {[%clk 0:00:33.9]} 39. Kh2
{[%clk 0:00:05.9]} 39... Na5 {[%clk 0:00:32.3]} 40. Rd1 {[%clk 0:00:05.4]} 40...
Nc6 {[%clk 0:00:32.4]} 41. Rg1 {[%clk 0:00:05.7]} 41... Rc8 {[%clk 0:00:32.4]}
42. Rfxg4 {[%clk 0:00:05.8]} 42... Rh7 {[%clk 0:00:31.3]} 43. Kh3 {[%clk
0:00:04.9]} 43... Rch8 {[%clk 0:00:31]} 44. f3 {[%clk 0:00:04.8]} 44... Na5
{[%clk 0:00:31]} 45. f4 {[%clk 0:00:02.4]} 45... Nc4 {[%clk 0:00:31]} 46. f5
{[%clk 0:00:02.9]} 46... exf5 {[%clk 0:00:30.7]} 47. Rg5 {[%clk 0:00:02.9]}
47... Ke6 {[%clk 0:00:30.6]} 48. Rf1 {[%clk 0:00:03.2]} 48... Ne3 {[%clk
0:00:30.8]} 49. Rf3 {[%clk 0:00:02.5]} 49... Nc2 {[%clk 0:00:27.5]} 50. Rgxf5
{[%clk 0:00:02.3]} 50... Nxd4 {[%clk 0:00:27.4]} 51. Rf6+ {[%clk 0:00:02.1]}
51... Ke7 {[%clk 0:00:27.7]} 52. R3f4 {[%clk 0:00:02]} 52... Ne6 {[%clk
0:00:27.5]} 0-1

[Event "Early-Titled-Tuesday-Blitz-March-05-2024"]
[Site "Chess.com"]
[Date "2024.03.05"]
[Round "7"]
[White "Dale"]
[Black "ChempionBg"]
[Result "0-1"]
[WhiteElo "2108"]
[BlackElo "2393"]
[TimeControl "180+1"]
[EndTime "9:19:57 PST"]
[Termination "ChempionBg won on time"]

1. Nf3 {[%clk 0:03:00.9]} 1... Nf6 {[%clk 0:02:58.6]} 2. h3 {[%clk 0:03:01.1]}
2... b6 {[%clk 0:02:58.3]} 3. g4 {[%clk 0:03:00.5]} 3... Bb7 {[%clk 0:02:58.1]}
4. c4 {[%clk 0:02:43.5]} 4... d5 {[%clk 0:02:55]} 5. cxd5 {[%clk 0:02:40.7]}
5... Nxd5 {[%clk 0:02:54.2]} 6. Qb3 {[%clk 0:02:37]} 6... Nd7 {[%clk 0:02:44.5]}
7. d4 {[%clk 0:02:36.1]} 7... e6 {[%clk 0:02:40.8]} 8. Nc3 {[%clk 0:02:21.8]}
8... c5 {[%clk 0:02:37.1]} 9. Bg2 {[%clk 0:02:13]} 9... cxd4 {[%clk 0:02:10.5]}
10. Nxd4 {[%clk 0:02:10.5]} 10... Bc5 {[%clk 0:02:09.5]} 11. Nxd5 {[%clk
0:02:02.1]} 11... Bxd4 {[%clk 0:01:57.6]} 12. Be3 {[%clk 0:01:53.5]} 12... Bxd5
{[%clk 0:01:20]} 13. Bxd5 {[%clk 0:01:52.3]} 13... Bxe3 {[%clk 0:01:20.1]} 14.
Qxe3 {[%clk 0:01:46.2]} 14... Rc8 {[%clk 0:01:16.7]} 15. O-O {[%clk 0:01:41]}
15... O-O {[%clk 0:01:14.8]} 16. Bg2 {[%clk 0:01:41]} 16... Qf6 {[%clk
0:01:12.1]} 17. Qa3 {[%clk 0:01:29]} 17... Rc2 {[%clk 0:01:07.9]} 18. Qxa7
{[%clk 0:01:26.1]} 18... Ne5 {[%clk 0:01:02.2]} 19. Qxb6 {[%clk 0:01:20.9]}
19... Rxe2 {[%clk 0:00:58.9]} 20. a4 {[%clk 0:01:19.7]} 20... Rxb2 {[%clk
0:00:55.3]} 21. Qc7 {[%clk 0:01:09]} 21... Nf3+ {[%clk 0:00:46.8]} 22. Kh1
{[%clk 0:01:06.6]} 22... Nd2 {[%clk 0:00:42.3]} 23. Rfd1 {[%clk 0:00:53.3]}
23... Qxf2 {[%clk 0:00:40]} 24. a5 {[%clk 0:00:44.6]} 24... Nb3 {[%clk
0:00:36.8]} 25. Qc6 {[%clk 0:00:34.9]} 25... Nxa1 {[%clk 0:00:23]} 26. Rxa1
{[%clk 0:00:35]} 26... Ra2 {[%clk 0:00:15.3]} 27. Rxa2 {[%clk 0:00:26.3]} 27...
Qxa2 {[%clk 0:00:14.9]} 28. a6 {[%clk 0:00:26.6]} 28... Qa1+ {[%clk 0:00:12.2]}
29. Kh2 {[%clk 0:00:25.9]} 29... Qd4 {[%clk 0:00:11.8]} 30. Qb7 {[%clk
0:00:19.7]} 30... Qd6+ {[%clk 0:00:10.5]} 31. Kg1 {[%clk 0:00:15.3]} 31... Rb8
{[%clk 0:00:07.3]} 32. Qe4 {[%clk 0:00:08.8]} 32... Qxa6 {[%clk 0:00:04.9]} 33.
h4 {[%clk 0:00:08.9]} 33... Qb6+ {[%clk 0:00:04.3]} 34. Kh2 {[%clk 0:00:07.7]}
34... Rd8 {[%clk 0:00:04.3]} 35. h5 {[%clk 0:00:06.6]} 35... g6 {[%clk
0:00:04.4]} 36. h6 {[%clk 0:00:06.4]} 36... Qd6+ {[%clk 0:00:04.3]} 37. Kh3
{[%clk 0:00:02.3]} 37... Qd3+ {[%clk 0:00:04.3]} 38. Kh4 {[%clk 0:00:01.4]}
38... Qxe4 {[%clk 0:00:03.6]} 39. Bxe4 {[%clk 0:00:01.5]} 39... Rd4 {[%clk
0:00:03.6]} 0-1

[Event "Early-Titled-Tuesday-Blitz-March-05-2024"]
[Site "Chess.com"]
[Date "2024.03.05"]
[Round "7"]
[White "AA95"]
[Black "mertfelin"]
[Result "0-1"]
[WhiteElo "2481"]
[BlackElo "2351"]
[TimeControl "180+1"]
[EndTime "9:19:59 PST"]
[Termination "mertfelin won by resignation"]

1. Nf3 {[%clk 0:03:00.9]} 1... d5 {[%clk 0:03:00.2]} 2. g3 {[%clk 0:03:01.2]}
2... e6 {[%clk 0:03:00.6]} 3. Bg2 {[%clk 0:03:01.6]} 3... Nf6 {[%clk 0:03:01.4]}
4. O-O {[%clk 0:03:02.1]} 4... Be7 {[%clk 0:03:02.2]} 5. d4 {[%clk 0:03:02.7]}
5... O-O {[%clk 0:03:02.9]} 6. c4 {[%clk 0:03:03.4]} 6... dxc4 {[%clk
0:03:03.8]} 7. Qc2 {[%clk 0:02:58.8]} 7... b5 {[%clk 0:03:04.2]} 8. Ne5 {[%clk
0:02:53.9]} 8... Nd5 {[%clk 0:03:01.5]} 9. b3 {[%clk 0:02:41.1]} 9... cxb3
{[%clk 0:02:59]} 10. axb3 {[%clk 0:02:42]} 10... Bb7 {[%clk 0:02:59.6]} 11. Bd2
{[%clk 0:02:29.6]} 11... a6 {[%clk 0:02:51.4]} 12. Ba5 {[%clk 0:02:27.2]} 12...
Bd6 {[%clk 0:02:50.4]} 13. Nd2 {[%clk 0:02:19.4]} 13... Qe7 {[%clk 0:02:47.8]}
14. Nd3 {[%clk 0:01:40.9]} 14... Nc6 {[%clk 0:02:36.3]} 15. Rfc1 {[%clk
0:01:33.5]} 15... Nxd4 {[%clk 0:02:33.1]} 16. Qd1 {[%clk 0:01:29.1]} 16... Nc6
{[%clk 0:02:24.7]} 17. e4 {[%clk 0:01:19.5]} 17... Ndb4 {[%clk 0:01:56]} 18. e5
{[%clk 0:00:46.1]} 18... Nxd3 {[%clk 0:01:56.3]} 19. exd6 {[%clk 0:00:45.9]}
19... Qf6 {[%clk 0:01:57]} 20. Ne4 {[%clk 0:00:43.8]} 20... Qd4 {[%clk
0:01:45.2]} 21. Bc3 {[%clk 0:00:36.9]} 21... Qb6 {[%clk 0:01:42.3]} 22. Qxd3
{[%clk 0:00:36.1]} 22... cxd6 {[%clk 0:01:36.4]} 23. Qxd6 {[%clk 0:00:33.9]}
23... Rfd8 {[%clk 0:01:34]} 24. Qf4 {[%clk 0:00:32.2]} 24... Nd4 {[%clk
0:01:32.8]} 25. Bxd4 {[%clk 0:00:23.8]} 25... Rxd4 {[%clk 0:01:30.6]} 26. Qe3
{[%clk 0:00:18.4]} 26... Qd8 {[%clk 0:01:30.3]} 27. Nc5 {[%clk 0:00:16.2]} 27...
Bxg2 {[%clk 0:01:30.2]} 28. Kxg2 {[%clk 0:00:17.1]} 28... a5 {[%clk 0:01:30]}
29. Ne4 {[%clk 0:00:12.5]} 29... a4 {[%clk 0:01:25.4]} 30. bxa4 {[%clk
0:00:12.3]} 30... bxa4 {[%clk 0:01:26.3]} 31. Ra3 {[%clk 0:00:11.5]} 31... Qd5
{[%clk 0:01:21.8]} 32. f3 {[%clk 0:00:11.7]} 32... f5 {[%clk 0:01:19.5]} 33. Rc5
{[%clk 0:00:09.2]} 33... Qd7 {[%clk 0:01:05.6]} 34. Ng5 {[%clk 0:00:09.4]} 34...
Rd2+ {[%clk 0:01:03.1]} 35. Kh3 {[%clk 0:00:09.8]} 35... Ra6 {[%clk 0:00:54.5]}
36. Re5 {[%clk 0:00:08.5]} 36... Rdd6 {[%clk 0:00:44.1]} 37. Qc5 {[%clk
0:00:06.1]} 37... h6 {[%clk 0:00:43.7]} 38. Nxe6 {[%clk 0:00:03.8]} 38... Rxe6
{[%clk 0:00:43.4]} 39. Qc4 {[%clk 0:00:03.4]} 39... Kh7 {[%clk 0:00:34.1]} 40.
Rxe6 {[%clk 0:00:02.7]} 40... Rxe6 {[%clk 0:00:35]} 41. Qf4 {[%clk 0:00:02.3]}
41... Qb5 {[%clk 0:00:28.9]} 42. Rxa4 {[%clk 0:00:01.2]} 42... Qf1+ {[%clk
0:00:29.3]} 43. Kh4 {[%clk 0:00:01.3]} 43... g5+ {[%clk 0:00:30]} 44. Qxg5
{[%clk 0:00:01.8]} 44... hxg5+ {[%clk 0:00:30.9]} 45. Kxg5 {[%clk 0:00:02.5]}
45... Rg6+ {[%clk 0:00:28.8]} 46. Kf4 {[%clk 0:00:03.4]} 46... Qc1+ {[%clk
0:00:27.1]} 47. Ke5 {[%clk 0:00:03.7]} 47... Qc5+ {[%clk 0:00:25.6]} 48. Kf4
{[%clk 0:00:04.1]} 48... Qd6+ {[%clk 0:00:24.5]} 49. Ke3 {[%clk 0:00:04.5]}
49... Re6+ {[%clk 0:00:23.6]} 50. Kf2 {[%clk 0:00:04.3]} 50... Qd2+ {[%clk
0:00:23.9]} 0-1

[Event "Early-Titled-Tuesday-Blitz-March-05-2024"]
[Site "Chess.com"]
[Date "2024.03.05"]
[Round "7"]
[White "Chopper1905"]
[Black "Nemegejas"]
[Result "1-0"]
[WhiteElo "2956"]
[BlackElo "2794"]
[TimeControl "180+1"]
[EndTime "9:20:00 PST"]
[Termination "Chopper1905 won on time"]

1. d4 {[%clk 0:03:00.9]} 1... Nf6 {[%clk 0:02:55.2]} 2. c4 {[%clk 0:03:01.1]}
2... g6 {[%clk 0:02:55.2]} 3. Nc3 {[%clk 0:03:01.1]} 3... Bg7 {[%clk 0:02:55.4]}
4. e4 {[%clk 0:03:01.1]} 4... d6 {[%clk 0:02:55.5]} 5. Nf3 {[%clk 0:03:01.7]}
5... O-O {[%clk 0:02:55.8]} 6. Be2 {[%clk 0:03:02.3]} 6... Nc6 {[%clk
0:02:55.7]} 7. d5 {[%clk 0:03:01.6]} 7... Nb8 {[%clk 0:02:54.4]} 8. O-O {[%clk
0:02:55.6]} 8... Nbd7 {[%clk 0:02:54.2]} 9. Bg5 {[%clk 0:02:51.1]} 9... Nc5
{[%clk 0:02:52.9]} 10. Nd2 {[%clk 0:02:49.8]} 10... h6 {[%clk 0:02:51]} 11. Bh4
{[%clk 0:02:48.6]} 11... c6 {[%clk 0:02:48.4]} 12. b4 {[%clk 0:02:42.1]} 12...
Ncd7 {[%clk 0:02:48.3]} 13. Rc1 {[%clk 0:02:31.4]} 13... a5 {[%clk 0:02:46.2]}
14. a3 {[%clk 0:02:29]} 14... axb4 {[%clk 0:02:45.7]} 15. axb4 {[%clk
0:02:29.9]} 15... Ra3 {[%clk 0:02:44.8]} 16. Ndb1 {[%clk 0:02:28.8]} 16... Ra8
{[%clk 0:02:43.9]} 17. Qb3 {[%clk 0:02:23.6]} 17... Qb6 {[%clk 0:02:41.6]} 18.
Nd2 {[%clk 0:02:18.8]} 18... Re8 {[%clk 0:02:30.3]} 19. Bg3 {[%clk 0:02:12.1]}
19... h5 {[%clk 0:02:14.4]} 20. Bf4 {[%clk 0:02:04.6]} 20... Ng4 {[%clk
0:02:02.7]} 21. h3 {[%clk 0:02:00.8]} 21... Nge5 {[%clk 0:01:54.8]} 22. Be3
{[%clk 0:01:58.9]} 22... c5 {[%clk 0:01:35.3]} 23. f4 {[%clk 0:01:57.6]} 23...
Bh6 {[%clk 0:01:35.4]} 24. Nb5 {[%clk 0:01:54]} 24... Nc6 {[%clk 0:01:00.2]} 25.
dxc6 {[%clk 0:01:33.9]} 25... bxc6 {[%clk 0:01:01.1]} 26. Nc3 {[%clk 0:01:20.2]}
26... Qxb4 {[%clk 0:01:01.1]} 27. Rb1 {[%clk 0:01:08.3]} 27... Bg7 {[%clk
0:00:57.6]} 28. Rfc1 {[%clk 0:01:00.5]} 28... Qa5 {[%clk 0:00:49.3]} 29. Bf3
{[%clk 0:00:52.2]} 29... Bh6 {[%clk 0:00:39]} 30. Nf1 {[%clk 0:00:32.1]} 30...
Ba6 {[%clk 0:00:35]} 31. Ra1 {[%clk 0:00:20.7]} 31... Qb4 {[%clk 0:00:34.6]} 32.
Qxb4 {[%clk 0:00:18.2]} 32... cxb4 {[%clk 0:00:34.6]} 33. Na4 {[%clk 0:00:19.1]}
33... b3 {[%clk 0:00:09.2]} 34. e5 {[%clk 0:00:16.9]} 34... Rab8 {[%clk
0:00:06.8]} 35. Nb2 {[%clk 0:00:16.7]} 35... Bb7 {[%clk 0:00:04.3]} 36. exd6
{[%clk 0:00:16.5]} 36... exd6 {[%clk 0:00:04.5]} 37. Ra3 {[%clk 0:00:16.3]}
37... Nc5 {[%clk 0:00:03]} 38. Bxc5 {[%clk 0:00:14.6]} 38... dxc5 {[%clk
0:00:03.9]} 39. Rxb3 {[%clk 0:00:15.2]} 39... Bxf4 {[%clk 0:00:04.5]} 40. Rb1
{[%clk 0:00:13.8]} 40... Ba6 {[%clk 0:00:04.9]} 41. Nd3 {[%clk 0:00:06.5]} 41...
Rxb3 {[%clk 0:00:04.4]} 42. Rxb3 {[%clk 0:00:07.4]} 42... Bd6 {[%clk 0:00:02.3]}
43. Bxc6 {[%clk 0:00:06.7]} 1-0

[Event "Early-Titled-Tuesday-Blitz-March-05-2024"]
[Site "Chess.com"]
[Date "2024.03.05"]
[Round "7"]
[White "EvgenyBurmakin"]
[Black "Ralf61"]
[Result "1-0"]
[WhiteElo "2357"]
[BlackElo "2536"]
[TimeControl "180+1"]
[EndTime "9:20:00 PST"]
[Termination "EvgenyBurmakin won on time"]

1. e4 {[%clk 0:03:00.9]} 1... c5 {[%clk 0:02:58.7]} 2. Nc3 {[%clk 0:03:00.3]}
2... e6 {[%clk 0:02:57.6]} 3. Nf3 {[%clk 0:02:59.6]} 3... Nc6 {[%clk 0:02:56]}
4. d4 {[%clk 0:02:59.6]} 4... cxd4 {[%clk 0:02:54.7]} 5. Nxd4 {[%clk 0:03:00.5]}
5... Qc7 {[%clk 0:02:54.6]} 6. Be3 {[%clk 0:02:57.2]} 6... a6 {[%clk 0:02:54.3]}
7. a3 {[%clk 0:02:51.8]} 7... b5 {[%clk 0:02:51.1]} 8. f3 {[%clk 0:02:51]} 8...
Bb7 {[%clk 0:02:49.3]} 9. Qd2 {[%clk 0:02:49.5]} 9... h5 {[%clk 0:02:42.5]} 10.
Qf2 {[%clk 0:02:39.8]} 10... Nf6 {[%clk 0:02:41.8]} 11. Nb3 {[%clk 0:02:34.6]}
11... Rc8 {[%clk 0:02:35.6]} 12. O-O-O {[%clk 0:02:24.5]} 12... b4 {[%clk
0:02:26.6]} 13. axb4 {[%clk 0:02:18.1]} 13... Bxb4 {[%clk 0:02:23.6]} 14. Na4
{[%clk 0:02:12.6]} 14... Be7 {[%clk 0:02:00.1]} 15. Nb6 {[%clk 0:01:51.7]} 15...
Rb8 {[%clk 0:01:58.7]} 16. Nc5 {[%clk 0:01:36.1]} 16... Qxb6 {[%clk 0:01:45.6]}
17. Nxd7 {[%clk 0:01:06.4]} 17... Qa5 {[%clk 0:01:41.1]} 18. Nxb8 {[%clk
0:00:59]} 18... Nxb8 {[%clk 0:01:35.4]} 19. Kb1 {[%clk 0:00:51.9]} 19... O-O
{[%clk 0:01:31.8]} 20. Bc4 {[%clk 0:00:50.6]} 20... Nc6 {[%clk 0:01:28.3]} 21.
Bb3 {[%clk 0:00:47.6]} 21... Rc8 {[%clk 0:01:20.9]} 22. Bb6 {[%clk 0:00:37.5]}
22... Qb4 {[%clk 0:01:19.5]} 23. Rd2 {[%clk 0:00:23.6]} 23... a5 {[%clk
0:01:12.1]} 24. Rhd1 {[%clk 0:00:14.3]} 24... a4 {[%clk 0:01:10.8]} 25. Ba2
{[%clk 0:00:12.2]} 25... Ne5 {[%clk 0:00:58.8]} 26. Bd4 {[%clk 0:00:09.7]} 26...
Nc4 {[%clk 0:00:51.1]} 27. Bxc4 {[%clk 0:00:08.3]} 27... Qxc4 {[%clk 0:00:48.7]}
28. Rd3 {[%clk 0:00:07.7]} 28... Qb5 {[%clk 0:00:44.9]} 29. Rc3 {[%clk
0:00:05.5]} 29... Rd8 {[%clk 0:00:40.7]} 30. Rcd3 {[%clk 0:00:01.9]} 30... Ra8
{[%clk 0:00:25.9]} 31. Bc3 {[%clk 0:00:02.6]} 31... Bc6 {[%clk 0:00:19.8]} 32.
Qd4 {[%clk 0:00:03.1]} 32... e5 {[%clk 0:00:14.8]} 33. Qxe5 {[%clk 0:00:03.1]}
33... Qb7 {[%clk 0:00:10.1]} 34. Qd4 {[%clk 0:00:03.1]} 34... Rd8 {[%clk
0:00:08.4]} 35. Qc4 {[%clk 0:00:02.5]} 35... Rb8 {[%clk 0:00:07.7]} 36. Rd4
{[%clk 0:00:02.5]} 36... Bb5 {[%clk 0:00:07]} 37. Qb4 {[%clk 0:00:01.5]} 37...
Bxb4 {[%clk 0:00:05.4]} 38. Rxb4 {[%clk 0:00:02.4]} 38... Qc6 {[%clk 0:00:04.4]}
39. Bxf6 {[%clk 0:00:02.8]} 39... gxf6 {[%clk 0:00:03.6]} 40. c3 {[%clk
0:00:03.7]} 40... Re8 {[%clk 0:00:01.9]} 41. Rd5 {[%clk 0:00:04.1]} 1-0

[Event "Early-Titled-Tuesday-Blitz-March-05-2024"]
[Site "Chess.com"]
[Date "2024.03.05"]
[Round "7"]
[White "rhungaski"]
[Black "Msb2"]
[Result "0-1"]
[WhiteElo "2592"]
[BlackElo "3007"]
[TimeControl "180+1"]
[EndTime "9:20:04 PST"]
[Termination "Msb2 won by resignation"]

1. e4 {[%clk 0:03:00.9]} 1... e6 {[%clk 0:03:00.4]} 2. d4 {[%clk 0:03:01.4]}
2... d6 {[%clk 0:03:01.3]} 3. Nc3 {[%clk 0:03:02.1]} 3... g6 {[%clk 0:03:01.4]}
4. h4 {[%clk 0:03:01.4]} 4... h6 {[%clk 0:03:01.5]} 5. Be3 {[%clk 0:03:01.2]}
5... Bg7 {[%clk 0:03:02.1]} 6. Qd2 {[%clk 0:03:01.1]} 6... a6 {[%clk 0:03:02.2]}
7. O-O-O {[%clk 0:02:58.8]} 7... b5 {[%clk 0:03:02.5]} 8. Kb1 {[%clk 0:02:56.7]}
8... Nd7 {[%clk 0:03:02.5]} 9. Nh3 {[%clk 0:02:51.4]} 9... Nb6 {[%clk
0:03:02.9]} 10. Bd3 {[%clk 0:02:41.9]} 10... Rb8 {[%clk 0:03:02]} 11. Ka1 {[%clk
0:02:40.5]} 11... c6 {[%clk 0:02:58.1]} 12. h5 {[%clk 0:02:31.1]} 12... g5
{[%clk 0:02:57]} 13. f4 {[%clk 0:02:30.7]} 13... gxf4 {[%clk 0:02:50.3]} 14.
Nxf4 {[%clk 0:02:31.6]} 14... Nf6 {[%clk 0:02:49.6]} 15. e5 {[%clk 0:02:16.6]}
15... Ng4 {[%clk 0:02:44.2]} 16. Ne4 {[%clk 0:01:57.8]} 16... dxe5 {[%clk
0:02:42.8]} 17. dxe5 {[%clk 0:01:57.3]} 17... Bxe5 {[%clk 0:02:43.7]} 18. Bc5
{[%clk 0:01:39.2]} 18... Na4 {[%clk 0:02:37]} 19. Qe2 {[%clk 0:01:09.2]} 19...
f5 {[%clk 0:01:57.8]} 20. Nd6+ {[%clk 0:00:42.5]} 20... Bxd6 {[%clk 0:01:57.3]}
21. Bxf5 {[%clk 0:00:43]} 21... Nxc5 {[%clk 0:01:40]} 22. Qxg4 {[%clk
0:00:36.7]} 22... Qg5 {[%clk 0:01:32.1]} 23. Rxd6 {[%clk 0:00:25.3]} 23... Qxf5
{[%clk 0:01:26.9]} 24. Qg7 {[%clk 0:00:18.1]} 24... Qf8 {[%clk 0:01:27]} 25. Qe5
{[%clk 0:00:17.9]} 25... Rg8 {[%clk 0:01:10.3]} 26. Rxc6 {[%clk 0:00:18.3]}
26... Nd7 {[%clk 0:01:04.8]} 27. Rxe6+ {[%clk 0:00:16.4]} 27... Kd8 {[%clk
0:01:03.6]} 28. Qd4 {[%clk 0:00:16.8]} 28... Qc5 {[%clk 0:00:54.6]} 29. Qd2
{[%clk 0:00:15.8]} 29... Rb6 {[%clk 0:00:40.7]} 30. Rg6 {[%clk 0:00:15.4]} 30...
Rbxg6 {[%clk 0:00:32]} 31. hxg6 {[%clk 0:00:16.3]} 31... Qc6 {[%clk 0:00:31.3]}
32. Re1 {[%clk 0:00:15.5]} 32... Kc7 {[%clk 0:00:30.4]} 33. Re6 {[%clk
0:00:15.6]} 33... Qc5 {[%clk 0:00:29.4]} 34. b4 {[%clk 0:00:14.3]} 34... Qc4
{[%clk 0:00:23]} 35. Qd6+ {[%clk 0:00:14]} 35... Kb7 {[%clk 0:00:23.5]} 36. Re7
{[%clk 0:00:11.9]} 36... Qc6 {[%clk 0:00:16.4]} 37. Qd4 {[%clk 0:00:08.1]} 37...
Kb8 {[%clk 0:00:16.8]} 38. Nd5 {[%clk 0:00:08.2]} 38... Rxg6 {[%clk 0:00:15.7]}
39. Qf4+ {[%clk 0:00:08.5]} 39... Qd6 {[%clk 0:00:16.4]} 40. Qd4 {[%clk
0:00:07.1]} 40... Re6 {[%clk 0:00:16.1]} 41. Rg7 {[%clk 0:00:02.9]} 41... Qe5
{[%clk 0:00:15.6]} 42. Qc3 {[%clk 0:00:02.5]} 42... Qxc3+ {[%clk 0:00:15.6]} 43.
Nxc3 {[%clk 0:00:03.4]} 43... Nb6 {[%clk 0:00:16.3]} 44. Kb2 {[%clk 0:00:03.8]}
44... Nc4+ {[%clk 0:00:16.8]} 45. Kb3 {[%clk 0:00:04.7]} 45... Re3 {[%clk
0:00:17.4]} 46. Rg8 {[%clk 0:00:05.6]} 46... Kc7 {[%clk 0:00:17.3]} 47. a4
{[%clk 0:00:05.5]} 47... Be6 {[%clk 0:00:17.3]} 48. Rg7+ {[%clk 0:00:05.3]}
48... Kd6 {[%clk 0:00:18]} 49. axb5 {[%clk 0:00:06.2]} 49... axb5 {[%clk
0:00:18.3]} 50. Ka2 {[%clk 0:00:06.2]} 50... Rxc3 {[%clk 0:00:18.2]} 0-1

[Event "Early-Titled-Tuesday-Blitz-March-05-2024"]
[Site "Chess.com"]
[Date "2024.03.05"]
[Round "7"]
[White "GMKrikor"]
[Black "SahibSinghKnight"]
[Result "1-0"]
[WhiteElo "2857"]
[BlackElo "2577"]
[TimeControl "180+1"]
[EndTime "9:20:06 PST"]
[Termination "GMKrikor won by resignation"]

1. Nf3 {[%clk 0:03:00.9]} 1... Nf6 {[%clk 0:02:37.6]} 2. c4 {[%clk 0:03:00.5]}
2... e6 {[%clk 0:02:35.9]} 3. Nc3 {[%clk 0:03:00.7]} 3... d5 {[%clk 0:02:36]} 4.
d4 {[%clk 0:03:00]} 4... Be7 {[%clk 0:02:34.7]} 5. cxd5 {[%clk 0:02:59.8]} 5...
exd5 {[%clk 0:02:33.8]} 6. Bf4 {[%clk 0:03:00.4]} 6... O-O {[%clk 0:02:31.8]} 7.
h3 {[%clk 0:02:59.9]} 7... Re8 {[%clk 0:02:28.7]} 8. e3 {[%clk 0:03:00.2]} 8...
Bd6 {[%clk 0:02:27.8]} 9. Bxd6 {[%clk 0:02:49.9]} 9... Qxd6 {[%clk 0:02:28.1]}
10. Qb3 {[%clk 0:02:49.6]} 10... b6 {[%clk 0:02:22.5]} 11. Rc1 {[%clk
0:02:48.6]} 11... c5 {[%clk 0:02:01.6]} 12. Qa3 {[%clk 0:02:47.3]} 12... Qe7
{[%clk 0:01:51.3]} 13. Na4 {[%clk 0:02:39]} 13... c4 {[%clk 0:01:43.2]} 14. Qxe7
{[%clk 0:02:26]} 14... Rxe7 {[%clk 0:01:43.3]} 15. Nc3 {[%clk 0:02:02.4]} 15...
a6 {[%clk 0:01:20.4]} 16. a4 {[%clk 0:02:01.4]} 16... Nc6 {[%clk 0:01:11.8]} 17.
b3 {[%clk 0:01:29.6]} 17... cxb3 {[%clk 0:01:09.8]} 18. Rb1 {[%clk 0:01:30]}
18... Na5 {[%clk 0:00:55.7]} 19. Bd3 {[%clk 0:01:24.4]} 19... Bd7 {[%clk
0:00:49.5]} 20. Kd2 {[%clk 0:01:17.5]} 20... Be8 {[%clk 0:00:31.1]} 21. Ne5
{[%clk 0:01:10.9]} 21... Rb7 {[%clk 0:00:09]} 22. g4 {[%clk 0:01:07.7]} 22... h6
{[%clk 0:00:08.9]} 23. h4 {[%clk 0:01:08.3]} 23... b5 {[%clk 0:00:08.5]} 24.
axb5 {[%clk 0:01:06.8]} 24... axb5 {[%clk 0:00:08.6]} 25. g5 {[%clk 0:01:07.5]}
25... b4 {[%clk 0:00:06.9]} 26. gxf6 {[%clk 0:00:46.8]} 26... bxc3+ {[%clk
0:00:07.2]} 27. Kxc3 {[%clk 0:00:47.7]} 27... gxf6 {[%clk 0:00:07.6]} 28. Ng4
{[%clk 0:00:45.7]} 28... Rc8+ {[%clk 0:00:04.1]} 29. Kd2 {[%clk 0:00:45.9]}
29... Rb6 {[%clk 0:00:02.9]} 30. Nxh6+ {[%clk 0:00:39.6]} 30... Kg7 {[%clk
0:00:02.8]} 31. Nf5+ {[%clk 0:00:39.1]} 31... Kf8 {[%clk 0:00:03.4]} 32. h5
{[%clk 0:00:38.9]} 32... Nc4+ {[%clk 0:00:03.8]} 33. Bxc4 {[%clk 0:00:37.9]}
33... dxc4 {[%clk 0:00:04.7]} 34. Kc3 {[%clk 0:00:37.7]} 34... Bd7 {[%clk
0:00:03.1]} 35. Ng3 {[%clk 0:00:32.6]} 35... f5 {[%clk 0:00:02]} 36. h6 {[%clk
0:00:28]} 36... Kg8 {[%clk 0:00:02.3]} 37. Rbg1 {[%clk 0:00:18.1]} 37... Kh7
{[%clk 0:00:02.3]} 38. Nh5 {[%clk 0:00:18.9]} 38... Rg6 {[%clk 0:00:02.2]} 39.
Nf4 {[%clk 0:00:14]} 39... Rxg1 {[%clk 0:00:02]} 40. Rxg1 {[%clk 0:00:14.9]}
40... Kxh6 {[%clk 0:00:01.5]} 41. Nd5 {[%clk 0:00:13.7]} 41... Be6 {[%clk
0:00:01.2]} 42. Nb6 {[%clk 0:00:11.9]} 42... Ra8 {[%clk 0:00:02.1]} 43. Nxa8
{[%clk 0:00:11.8]} 43... f4 {[%clk 0:00:02.6]} 44. Nb6 {[%clk 0:00:11]} 44...
Bf5 {[%clk 0:00:03.5]} 45. Nd5 {[%clk 0:00:07.4]} 1-0